fUST/lending_fUST_20250613
["ID","MTS","AMOUNT","RATE_DAILY","PERIOD"]
[365681868,1749827443839,-3000.0,0.0002274,2]
[365681869,1749827443849,-3000.0,0.0002275,2]
[365681870,1749827443859,-3000.0,0.0002276,2]
[365681871,1749827443868,-3000.0,0.0002277,2]
[365681872,1749827443878,-3000.0,0.0002278,2]
[365681873,1749827443887,-3000.0,0.0002279,2]
[365681874,1749827443897,-3000.0,0.000228,2]
[365681875,1749827443906,-3000.0,0.0002281,2]
[365681876,1749827443916,-3000.0,0.0002282,2]
[365681877,1749827443926,-3000.0,0.0002283,2]
[365681878,1749827443936,-3000.0,0.0002284,2]
[365681880,1749827443945,-3000.0,0.0002285,2]
[365681881,1749827443958,-3000.0,0.0002286,2]
[365681882,1749827443978,-579.5016565,0.00022869,2]
[365681883,1749827443989,-3000.0,0.0002287,2]
[365681884,1749827444002,-3000.0,0.0002288,2]
[365681885,1749827444013,-160.0,0.00022886,3]
[365681887,1749827444024,-3000.0,0.0002289,2]
[365681888,1749827444034,-1287.0,0.0002289,2]
[365681889,1749827444044,-3000.0,0.000229,2]
[365681890,1749827444054,-151.0,0.00022905,2]
[365681891,1749827444064,-5000.0,0.00022905,2]
[365681892,1749827444074,-3000.0,0.0002291,2]
[365681893,1749827444084,-3000.0,0.0002292,2]
[365681894,1749827444093,-1287.0,0.0002292,2]
[365681895,1749827444103,-503.34321714,0.00022925,2]
[365681896,1749827444113,-500.0,0.00022925,2]
[365681897,1749827444122,-3000.0,0.0002293,2]
[365681898,1749827444131,-3000.0,0.0002294,2]
[365681899,1749827444141,-420.0,0.00022942,2]
[365681900,1749827444152,-420.0,0.00022942,2]
[365681901,1749827444162,-3000.0,0.0002295,2]
[365681902,1749827444172,-500.0,0.00022955,2]
[365681903,1749827444183,-539.80823797,0.00022955,2]
[365681905,1749827444193,-3000.0,0.0002296,2]
[365681906,1749827444208,-3000.0,0.0002297,2]
[365681907,1749827444225,-3000.0,0.0002298,2]
[365681908,1749827444239,-3000.0,0.0002299,2]
[365681909,1749827444249,-5000.0,0.00023,7]
[365681911,1749827444261,-13922.0,0.00023,2]
[365681912,1749827444271,-3000.0,0.00023,2]
[365681913,1749827444280,-160.0,0.00023,3]
[365681914,1749827444290,-844.94977992,0.00023,7]
[365681915,1749827444300,-3000.0,0.0002301,2]
[365681916,1749827444309,-229.39,0.00023012,5]
[365681917,1749827444318,-497.13,0.00023013,4]
[365681918,1749827444328,-649.71,0.00023013,4]
[365681919,1749827444340,-718.19,0.00023013,4]
[365681920,1749827444349,-1945.04,0.00023013,4]
[365681921,1749827444358,-460.0,0.00023013,4]
[365681922,1749827444368,-489.15,0.00023013,4]
[365681923,1749827444379,-738.23,0.00023013,4]
[365681924,1749827444388,-460.0,0.00023013,4]
[365681925,1749827444397,-460.0,0.00023013,4]
[365681926,1749827444407,-460.0,0.00023013,4]
[365681927,1749827444419,-460.0,0.00023013,2]
[365681928,1749827444429,-1621.77,0.00023013,4]
[365681929,1749827444439,-1236.5,0.00023013,4]
[365681930,1749827444448,-460.0,0.00023013,4]
[365681931,1749827444458,-1917.67,0.00023013,4]
[365681932,1749827444467,-2309.27,0.00023013,4]
[365681934,1749827444477,-460.0,0.00023013,4]
[365681935,1749827444486,-1184.92,0.00023013,4]
[365681936,1749827444495,-743.96,0.00023013,4]
[365681937,1749827444509,-475.94,0.00023013,4]
[365681938,1749827444519,-1430.43,0.00023013,4]
[365681940,1749827444528,-460.0,0.00023013,4]
[365681941,1749827444537,-460.0,0.00023013,4]
[365681942,1749827444546,-1703.3,0.00023013,4]
[365681943,1749827444556,-166.50369972,0.00023014,2]
[365681944,1749827444565,-3000.0,0.0002302,2]
[365681945,1749827444575,-3000.0,0.0002303,2]
[365681946,1749827444584,-3000.0,0.0002304,2]
[365681947,1749827444593,-730.4125468,0.00023041,2]
[365681948,1749827444602,-365.2062734,0.00023041,2]
[365681949,1749827444611,-365.2062734,0.00023041,2]
[365681950,1749827444620,-365.2062734,0.00023041,2]
[365681951,1749827444630,-3000.0,0.0002305,2]
[365681952,1749827444640,-3000.0,0.0002306,2]
[365681953,1749827444650,-3000.0,0.0002307,2]
[365681954,1749827444660,-3000.0,0.0002308,2]
[365681955,1749827444670,-160.0,0.00023086,3]
[365681956,1749827444679,-3000.0,0.0002309,2]
[365681957,1749827444688,-3000.0,0.000231,2]
[365681958,1749827444697,-3000.0,0.0002311,2]
[365681959,1749827444706,-3000.0,0.0002312,2]
[365681960,1749827444716,-3000.0,0.0002313,2]
[365681961,1749827444725,-3000.0,0.0002314,2]
[365681963,1749827444735,-3000.0,0.0002315,2]
[365681964,1749827444745,-3000.0,0.0002316,2]
[365681965,1749827444757,-3000.0,0.0002317,2]
[365681966,1749827444767,-3000.0,0.0002318,2]
[365681967,1749827444776,-151.498,0.00023184,2]
[365681968,1749827444786,-244.659,0.00023184,2]
[365681970,1749827444795,-250.0,0.00023184,2]
[365681971,1749827444803,-258.376,0.00023184,2]
[365681972,1749827444813,-215.56,0.00023184,2]
[365681973,1749827444823,-2160.0,0.00023184,2]
[365681974,1749827444832,-774.076,0.00023184,2]
[365681975,1749827444842,-1471.99352681,0.00023187,2]
[365681976,1749827444852,-3000.0,0.0002319,2]
[365681978,1749827444861,-3000.0,0.000232,2]
[365681979,1749827444871,-3000.0,0.0002321,2]
[365681980,1749827444881,-3000.0,0.0002322,2]
[365681981,1749827444891,-3000.0,0.0002323,2]
[365681982,1749827444899,-3000.0,0.0002324,2]
[365681983,1749827444909,-1287.0,0.00023244,2]
[365681984,1749827444918,-2000.0,0.00023248,2]
[365681985,1749827444927,-3000.0,0.0002325,2]
[365681986,1749827444937,-5888.0,0.00023255,7]
[365681988,1749827445029,-3000.0,0.0002326,2]
[365681989,1749827445040,-3000.0,0.0002327,2]
[365681990,1749827445050,-3000.0,0.0002328,2]
[365681991,1749827445060,-497.13,0.00023287,4]
[365681992,1749827445069,-649.71,0.00023287,4]
[365681993,1749827445079,-718.19,0.00023287,4]
[365681994,1749827445089,-460.0,0.00023287,4]
[365681995,1749827445099,-1945.04,0.00023287,4]
[365681996,1749827445108,-489.15,0.00023287,4]
[365681997,1749827445118,-738.23,0.00023287,4]
[365681999,1749827445128,-460.0,0.00023287,4]
[365682000,1749827445137,-460.0,0.00023287,4]
[365682001,1749827445147,-460.0,0.00023287,4]
[365682002,1749827445158,-460.0,0.00023287,2]
[365682003,1749827445167,-1621.77,0.00023287,4]
[365682004,1749827445177,-1236.5,0.00023287,4]
[365682005,1749827445186,-587.7,0.00023287,4]
[365682006,1749827445195,-1917.67,0.00023287,4]
[365682007,1749827445205,-2309.27,0.00023287,4]
[365682008,1749827445214,-460.0,0.00023287,4]
[365682009,1749827445223,-1184.92,0.00023287,4]
[365682010,1749827445232,-743.96,0.00023287,4]
[365682011,1749827445242,-475.94,0.00023287,4]
[365682013,1749827445254,-1430.43,0.00023287,4]
[365682014,1749827445263,-460.0,0.00023287,4]
[365682015,1749827445273,-460.0,0.00023287,4]
[365682016,1749827445282,-1703.3,0.00023287,4]
[365682017,1749827445291,-4554.677774,0.0002329,2]
[365682018,1749827445301,-12531.02669373,0.000233,7]
[365682019,1749827445310,-166.50369972,0.00023315,2]
[365682020,1749827445320,-153.0,0.00023342,2]
[365682021,1749827445332,-153.0,0.00023342,2]
[365682022,1749827445342,-153.0,0.00023342,2]
[365682023,1749827445351,-176.9539549,0.00023342,2]
[365682024,1749827445361,-158.8399287,0.00023342,2]
[365682025,1749827445371,-573.6747916,0.00023342,2]
[365682026,1749827445380,-158.8399287,0.00023342,2]
[365682027,1749827445390,-176.9539549,0.00023342,2]
[365682028,1749827445399,-153.0,0.00023342,2]
[365682029,1749827445410,-153.0,0.00023342,2]
[365682030,1749827445420,-573.6747916,0.00023342,2]
[365682031,1749827445430,-176.9539549,0.00023342,2]
[365682032,1749827445440,-158.8399287,0.00023342,2]
[365682033,1749827445450,-573.6747916,0.00023342,2]
[365682034,1749827445459,-158.8399287,0.00023342,2]
[365682035,1749827445468,-153.0,0.00023342,2]
[365682036,1749827445477,-153.0,0.00023342,2]
[365682037,1749827445487,-573.6747916,0.00023342,2]
[365682038,1749827445496,-176.9539549,0.00023342,2]
[365682040,1749827445508,-176.9539549,0.00023342,2]
[365682041,1749827445517,-573.6747916,0.00023342,2]
[365682042,1749827445527,-153.0,0.00023342,2]
[365682043,1749827445536,-181.9331861,0.00023342,2]
[365682044,1749827445546,-332.5463551,0.00023342,2]
[365682045,1749827445555,-153.0,0.00023342,2]
[365682047,1749827445565,-381.3092904,0.00023342,2]
[365682048,1749827445575,-153.0,0.00023342,2]
[365682049,1749827445584,-153.0,0.00023342,2]
[365682050,1749827445593,-153.0,0.00023342,2]
[365682051,1749827445602,-311.5050251,0.00023342,2]
[365682052,1749827445612,-153.0,0.00023342,2]
[365682053,1749827445622,-1287.0,0.00023361,2]
[365682054,1749827445632,-23234.24844158,0.00023389,2]
[365682055,1749827445642,-442.62766673,0.00023392,2]
[365682056,1749827445652,-178.87756257,0.00023453,2]
[365682057,1749827445661,-5000.0,0.00023453,2]
[365682058,1749827445671,-1005.00855098,0.00023473,2]
[365682059,1749827445680,-153.0,0.00023478,2]
[365682060,1749827445689,-153.0,0.00023478,2]
[365682061,1749827445698,-153.0,0.00023478,2]
[365682063,1749827445708,-153.0,0.00023478,2]
[365682064,1749827445717,-153.0,0.00023478,2]
[365682065,1749827445726,-153.0,0.00023478,2]
[365682066,1749827445736,-153.0,0.0002348,2]
[365682067,1749827445745,-153.0,0.0002348,2]
[365682069,1749827445758,-2275.276971,0.0002351,3]
[365682070,1749827445768,-1240.89,0.00023511,2]
[365682071,1749827445777,-497.13,0.00023561,4]
[365682072,1749827445786,-649.71,0.00023561,4]
[365682073,1749827445796,-718.19,0.00023561,4]
[365682074,1749827445805,-460.0,0.00023561,4]
[365682075,1749827445815,-1945.04,0.00023561,4]
[365682076,1749827445824,-489.15,0.00023561,4]
[365682077,1749827445834,-738.23,0.00023561,4]
[365682078,1749827445843,-460.0,0.00023561,4]
[365682079,1749827445853,-460.0,0.00023561,4]
[365682080,1749827445863,-460.0,0.00023561,4]
[365682081,1749827445873,-460.0,0.00023561,2]
[365682082,1749827445883,-1621.77,0.00023561,4]
[365682083,1749827445893,-1236.5,0.00023561,4]
[365682084,1749827445903,-1917.67,0.00023561,4]
[365682085,1749827445912,-2309.27,0.00023561,4]
[365682086,1749827445922,-336.31,0.00023561,4]
[365682087,1749827445931,-1184.92,0.00023561,4]
[365682088,1749827445941,-743.96,0.00023561,4]
[365682089,1749827445951,-475.94,0.00023561,4]
[365682090,1749827445961,-1430.43,0.00023561,4]
[365682091,1749827445971,-460.0,0.00023561,4]
[365682092,1749827445981,-263.86,0.00023561,4]
[365682093,1749827445990,-1703.3,0.00023561,4]
[365682094,1749827446000,-151.0,0.000236,5]
[365682095,1749827446014,-160.0,0.000236,3]
[365682096,1749827446024,-835.28007164,0.000236,3]
[365682097,1749827446033,-229.78555783,0.000236,3]
[365682098,1749827446043,-160.0,0.000236,3]
[365682100,1749827446053,-160.0,0.000236,3]
[365682102,1749827446064,-424.32678023,0.000236,3]
[365682103,1749827446074,-844.94977992,0.000236,3]
[365682104,1749827446083,-1287.0,0.00023668,2]
[365682105,1749827446093,-167.40932512,0.0002368,2]
[365682106,1749827446102,-3000.0,0.000237,2]
[365682108,1749827446112,-6888.13748271,0.000237,2]
[365682110,1749827446122,-3000.0,0.0002371,2]
[365682112,1749827446131,-3000.0,0.0002372,2]
[365682113,1749827446141,-215.0738,0.00023726,2]
[365682114,1749827446150,-3000.0,0.0002373,2]
[365682115,1749827446161,-213.24139183,0.00023733,2]
[365682116,1749827446170,-3000.0,0.0002374,2]
[365682117,1749827446180,-3000.0,0.0002375,2]
[365682118,1749827446189,-3000.0,0.0002376,2]
[365682119,1749827446198,-3000.0,0.0002377,2]
[365682120,1749827446207,-502.18762208,0.00023773,2]
[365682121,1749827446216,-500.0,0.00023773,2]
[365682122,1749827446225,-227.42880251,0.00023773,2]
[365682123,1749827446235,-503.48503408,0.00023773,2]
[365682124,1749827446244,-500.0,0.00023773,2]
[365682125,1749827446258,-500.0,0.00023773,2]
[365682126,1749827446268,-500.0,0.00023773,2]
[365682127,1749827446277,-500.0,0.00023773,2]
[365682128,1749827446287,-500.0,0.00023773,2]
[365682129,1749827446297,-500.99252369,0.00023773,2]
[365682130,1749827446306,-500.0,0.00023773,2]
[365682131,1749827446315,-500.0,0.00023773,2]
[365682132,1749827446325,-600.0,0.00023773,2]
[365682133,1749827446339,-500.0,0.00023773,2]
[365682134,1749827446348,-151.0,0.00023779,2]
[365682135,1749827446358,-10736.12743952,0.0002378,7]
[365682136,1749827446367,-21922.20764509,0.0002378,5]
[365682137,1749827447204,-500.0,0.00020964,2]
[365682138,1749827447213,-460.0,0.00021095,4]
[365682139,1749827447223,-460.0,0.00021369,4]
[365682140,1749827447232,-460.0,0.00021643,4]
[365682141,1749827447241,-754.25,0.000219,6]
[365682190,1749827474990,2000.0,0.00021549,120]
[365683081,1749827611580,200.0,0.00024326,120]
[365683240,1749827671029,3364.52771083,0.00017939,2]
[365683242,1749827671359,200.0,0.00023746,120]
[365683613,1749827731380,200.0,0.00023964,120]
[365683801,1749827776754,10000.0,0.00024658,120]
[365683846,1749827791116,440.04,0.0002465,120]
[365683854,1749827796164,3300.0,0.00024658,120]
[365684776,1749828091304,200.0,0.0002402,120]
[365684778,1749828136505,160.954004,0.00013699,2]
[365684780,1749828158918,164.224603,0.00020255,69]
[365684781,1749828159135,164.224603,0.00020255,86]
[365684782,1749828159345,164.224603,0.00020255,103]
[365684783,1749828159583,164.224603,0.00020255,119]
[365684785,1749828211580,200.0,0.00023651,120]
[365684787,1749828271663,200.0,0.00024556,120]
[365684814,1749828391570,200.0,0.00024174,120]
[365684829,1749828455435,1478.55577966,0.00024979,120]
[365684830,1749828463756,-3417.0,0.00019953,6]
[365684831,1749828467580,180.79602587,0.00024979,120]
[365684832,1749828473311,2630.17770366,0.00024979,120]
[365684833,1749828474039,449.73621508,0.000246,120]
[365684836,1749828478489,339.77333742,0.00024658,120]
[365684837,1749828486332,200.0,0.00024979,120]
[365684838,1749828487061,2780.48503412,0.00024979,60]
[365684842,1749828498515,268.90687327,0.00024979,120]
[365684843,1749828500928,543.23823561,0.00024979,120]
[365684846,1749828504523,188.0,0.0002,120]
[365684847,1749828506900,959.57316283,0.00024979,120]
[365684848,1749828507256,913.52868956,0.00024979,120]
[365684849,1749828510577,553.8319092,0.00024979,120]
[365684874,1749828515854,842.61765283,0.00024979,120]
[365684878,1749828516841,686.5378054,0.00024979,120]
[365684880,1749828518417,240.82074905,0.00024979,120]
[365684881,1749828518452,2972.6353429,0.00024979,60]
[365684883,1749828519771,241.5193813,0.00024979,120]
[365684884,1749828520372,2454.33404138,0.00024979,120]
[365684885,1749828520901,1021.55814421,0.00024979,120]
[365684886,1749828521187,2000.0,0.00024979,120]
[365684887,1749828521462,3049.69854085,0.00024979,120]
[365684889,1749828522132,1097.78092698,0.00024979,120]
[365684890,1749828522783,371.26138746,0.00024108,120]
[365684891,1749828523684,2594.42900072,0.00024979,120]
[365684892,1749828524222,1793.11320715,0.00024,120]
[365684893,1749828524257,1131.04623125,0.00024979,60]
[365684894,1749828524357,2539.73192913,0.00024979,120]
[365684895,1749828524878,1089.61789946,0.00024979,120]
[365684896,1749828525225,1004.9110189,0.00024979,120]
[365684898,1749828525603,1429.45951155,0.00024979,120]
[365684899,1749828525730,463.17151393,0.00024979,120]
[365684900,1749828525773,723.36705411,0.00024979,120]
[365684901,1749828525886,3043.48146754,0.00024979,120]
[365684902,1749828526274,1559.25999448,0.00024979,120]
[365684903,1749828526596,308.40813296,0.00024979,120]
[365684904,1749828526853,425.46269708,0.00024979,120]
[365684905,1749828527022,611.10112061,0.00024979,120]
[365684906,1749828527061,215.35279212,0.00024979,120]
[365684907,1749828527097,1605.11814257,0.00024979,120]
[365684908,1749828527562,1147.13530826,0.000245,120]
[365684911,1749828527857,1974.20444948,0.00024979,120]
[365684912,1749828528295,316.1562701,0.00024979,120]
[365684914,1749828528652,203.23134132,0.00024979,120]
[365684915,1749828529018,378.33486598,0.00024,120]
[365684919,1749828529934,1381.04750715,0.00024979,120]
[365684920,1749828529981,669.31462086,0.00024979,120]
[365684921,1749828530102,218.09628184,0.0001536,120]
[365684922,1749828530735,532.78400107,0.00024979,120]
[365684923,1749828530912,210.95623421,0.00024979,120]
[365684925,1749828531104,1266.92514201,0.00024658,120]
[365684926,1749828531393,1009.36870409,0.0002,120]
[365684928,1749828531948,218.82135117,0.00024979,120]
[365684929,1749828532279,207.89821366,0.00024979,120]
[365684930,1749828532989,2551.4001075,0.00024979,120]
[365684931,1749828533024,2973.79603652,0.00024979,120]
[365684932,1749828533153,2533.98816794,0.00024979,120]
[365684933,1749828533187,500.35760467,0.0002465,120]
[365684934,1749828533221,229.64800131,0.00024,120]
[365684943,1749828609230,2000.0,0.0001979,120]
[365684944,1749828621125,888.55888164,0.00023746,120]
[365684974,1749828632566,-1482.04655567,0.00019753,6]
[365684978,1749828638846,-100.95344433,0.00019753,6]
[365684979,1749828638857,-305.0,0.0002,2]
[365684980,1749828638867,-729.94906441,0.00020155,2]
[365684981,1749828638980,-3470.32177367,0.00020155,2]
[365684982,1749828638990,-164.224603,0.00020255,2]
[365684983,1749828639001,-164.224603,0.00020255,18]
[365684984,1749828639011,-164.224603,0.00020255,35]
[365684985,1749828639020,-164.224603,0.00020255,52]
[365684986,1749828639030,-200.91690379,0.000209,4]
[365684987,1749828639039,-326.95007179,0.00020995,2]
[365684988,1749828639048,-883.19611611,0.00020995,2]
[365684989,1749828639058,-300.0,0.00020999,2]
[365684990,1749828639068,-6750.0,0.00021,2]
[365684991,1749828639078,-534.37,0.00021084,10]
[365684992,1749828639088,-445.31,0.00021084,10]
[365684993,1749828639097,-367.31,0.00021085,10]
[365684994,1749828639107,-641.24,0.00021085,10]
[365684995,1749828639116,-300.0,0.00021093,2]
[365684996,1749828639126,-500.0,0.00021093,2]
[365684997,1749828639136,-500.0,0.00021093,2]
[365684998,1749828639145,-265.69189112,0.00021093,2]
[365684999,1749828639155,-517.83549825,0.00021093,2]
[365685000,1749828639167,-500.0,0.00021093,2]
[365685001,1749828639177,-500.0,0.00021093,2]
[365685002,1749828639186,-500.0,0.00021093,2]
[365685003,1749828639196,-500.0,0.00021093,2]
[365685004,1749828639205,-500.0,0.00021093,2]
[365685005,1749828639215,-500.0,0.00021093,2]
[365685006,1749828639224,-500.0,0.00021093,2]
[365685007,1749828639234,-500.0,0.00021093,2]
[365685008,1749828639243,-484.31176733,0.00021093,2]
[365685009,1749828639253,-531.7587969,0.00021093,2]
[365685010,1749828639263,-500.0,0.00021093,2]
[365685011,1749828639273,-500.0,0.00021093,2]
[365685012,1749828639282,-482.07867918,0.00021093,2]
[365685013,1749828639292,-500.0,0.00021093,2]
[365685014,1749828639302,-500.0,0.00021093,2]
[365685015,1749828639311,-500.0,0.00021093,2]
[365685016,1749828639321,-349.65979354,0.00021093,2]
[365685017,1749828639330,-305.86149712,0.00021093,2]
[365685018,1749828639339,-500.0,0.00021093,2]
[365685019,1749828639349,-500.0,0.00021093,2]
[365685020,1749828639358,-177.004,0.00021094,2]
[365685021,1749828639368,-432076.08481,0.00021094,2]
[365685022,1749828639378,-400.0,0.00021095,4]
[365685023,1749828639388,-460.0,0.00021095,4]
[365685024,1749828639399,-460.0,0.00021095,4]
[365685025,1749828639408,-460.0,0.00021095,4]
[365685026,1749828639419,-460.0,0.00021095,4]
[365685027,1749828639428,-440.0,0.00021095,4]
[365685028,1749828639438,-460.0,0.00021095,4]
[365685029,1749828639448,-558.45558947,0.00021095,4]
[365685030,1749828639458,-203.39979362,0.00021095,4]
[365685031,1749828639468,-460.0,0.00021095,4]
[365685032,1749828639479,-460.0,0.00021095,4]
[365685033,1749828639493,-460.0,0.00021095,4]
[365685034,1749828639503,-309.87561211,0.00021095,4]
[365685035,1749828639513,-460.0,0.00021095,4]
[365685036,1749828639522,-448.51732202,0.00021095,4]
[365685037,1749828639531,-436.32163317,0.00021095,4]
[365685038,1749828639540,-460.0,0.00021095,4]
[365685039,1749828639550,-460.0,0.00021095,4]
[365685040,1749828639560,-460.0,0.00021095,4]
[365685041,1749828639570,-460.0,0.00021095,4]
[365685042,1749828639580,-460.0,0.00021095,4]
[365685043,1749828639589,-501.89736653,0.00021095,4]
[365685044,1749828639599,-442.03588551,0.00021095,4]
[365685045,1749828639609,-440.0,0.00021095,4]
[365685046,1749828639618,-420.0,0.00021095,4]
[365685047,1749828639628,-460.0,0.00021095,4]
[365685048,1749828639637,-460.0,0.00021095,4]
[365685049,1749828639647,-460.0,0.00021095,4]
[365685050,1749828639656,-460.0,0.00021095,4]
[365685051,1749828639666,-162.41259368,0.00021095,4]
[365685052,1749828639676,-460.0,0.00021095,4]
[365685053,1749828639686,-460.0,0.00021095,4]
[365685054,1749828639695,-460.0,0.00021095,4]
[365685055,1749828639705,-443.43214069,0.00021095,4]
[365685056,1749828639714,-460.0,0.00021095,4]
[365685057,1749828639726,-460.0,0.00021095,4]
[365685058,1749828639736,-460.0,0.00021095,4]
[365685059,1749828639745,-440.0,0.00021095,4]
[365685060,1749828639755,-460.0,0.00021095,4]
[365685061,1749828639765,-384.24276267,0.00021095,4]
[365685062,1749828639777,-460.0,0.00021095,4]
[365685063,1749828639786,-440.0,0.00021095,4]
[365685064,1749828639795,-460.0,0.00021095,4]
[365685065,1749828639804,-460.0,0.00021095,4]
[365685066,1749828639815,-460.0,0.00021095,4]
[365685067,1749828639824,-542.42211343,0.00021095,4]
[365685068,1749828639833,-440.0,0.00021095,4]
[365685069,1749828639843,-460.0,0.00021095,4]
[365685070,1749828639852,-460.0,0.00021095,4]
[365685071,1749828639861,-460.0,0.00021095,4]
[365685072,1749828639870,-430.0,0.00021095,4]
[365685073,1749828639879,-460.0,0.00021095,4]
[365685074,1749828639888,-460.0,0.00021095,4]
[365685075,1749828639897,-460.0,0.00021095,4]
[365685076,1749828639906,-460.0,0.00021095,4]
[365685077,1749828639916,-460.0,0.00021095,4]
[365685078,1749828639925,-440.0,0.00021095,4]
[365685079,1749828639934,-460.0,0.00021095,4]
[365685080,1749828639944,-440.0,0.00021095,4]
[365685081,1749828639954,-263.80068983,0.00021095,4]
[365685082,1749828639963,-460.0,0.00021095,4]
[365685083,1749828639973,-460.0,0.00021095,4]
[365685084,1749828639982,-440.0,0.00021095,4]
[365685085,1749828639991,-460.0,0.00021095,4]
[365685086,1749828640001,-460.0,0.00021095,4]
[365685087,1749828640010,-460.0,0.00021095,4]
[365685088,1749828640021,-184.36756907,0.00021095,4]
[365685089,1749828640031,-460.0,0.00021095,4]
[365685090,1749828640041,-460.0,0.00021095,4]
[365685091,1749828640050,-374.99628542,0.00021095,4]
[365685092,1749828640059,-396.83934309,0.00021095,4]
[365685093,1749828640070,-460.0,0.00021095,4]
[365685094,1749828640080,-460.0,0.00021095,4]
[365685095,1749828640089,-440.0,0.00021095,4]
[365685096,1749828640099,-545.8,0.00021095,4]
[365685097,1749828640109,-237.22059606,0.00021095,4]
[365685098,1749828640118,-460.0,0.00021095,4]
[365685099,1749828640127,-460.0,0.00021095,4]
[365685100,1749828640137,-460.0,0.00021095,4]
[365685101,1749828640147,-622.02,0.00021095,4]
[365685102,1749828640156,-460.0,0.00021095,4]
[365685103,1749828640166,-535.95206501,0.00021095,4]
[365685104,1749828640176,-715.43,0.00021095,4]
[365685105,1749828640185,-660.43,0.00021095,4]
[365685106,1749828640195,-460.0,0.00021095,4]
[365685107,1749828640205,-460.0,0.00021095,4]
[365685108,1749828640215,-854.6,0.00021095,4]
[365685109,1749828640224,-460.0,0.00021095,4]
[365685110,1749828640233,-440.0,0.00021095,4]
[365685111,1749828640243,-460.0,0.00021095,4]
[365685112,1749828640252,-430.0,0.00021095,4]
[365685113,1749828640262,-460.0,0.00021095,4]
[365685114,1749828640271,-460.0,0.00021095,4]
[365685115,1749828640281,-460.0,0.00021095,4]
[365685116,1749828640300,-460.0,0.00021095,4]
[365685117,1749828640310,-460.0,0.00021095,4]
[365685118,1749828640320,-357.97977024,0.00021095,4]
[365685119,1749828640329,-460.0,0.00021095,4]
[365685120,1749828640338,-430.0,0.00021095,4]
[365685121,1749828640347,-500.0,0.00021095,4]
[365685122,1749828640357,-460.0,0.00021095,4]
[365685123,1749828640367,-460.0,0.00021095,4]
[365685124,1749828640376,-460.0,0.00021095,4]
[365685125,1749828640386,-1299.89,0.00021095,4]
[365685126,1749828640396,-460.0,0.00021095,4]
[365685127,1749828640405,-460.0,0.00021095,4]
[365685128,1749828640416,-460.0,0.00021095,4]
[365685129,1749828640425,-460.0,0.00021095,4]
[365685130,1749828640434,-460.0,0.00021095,4]
[365685131,1749828640444,-391.30104741,0.00021095,4]
[365685132,1749828640453,-440.0,0.00021095,4]
[365685133,1749828640463,-401.85675123,0.00021095,4]
[365685134,1749828640472,-348.90531776,0.00021095,4]
[365685135,1749828640481,-460.0,0.00021095,4]
[365685136,1749828640492,-2195.59,0.00021095,4]
[365685137,1749828640501,-460.0,0.00021095,4]
[365685138,1749828640511,-380.0,0.00021095,4]
[365685139,1749828640520,-430.0,0.00021095,4]
[365685140,1749828640529,-460.0,0.00021095,4]
[365685141,1749828640538,-460.0,0.00021095,4]
[365685142,1749828640548,-493.2,0.00021095,4]
[365685143,1749828640558,-460.0,0.00021095,4]
[365685144,1749828640568,-460.0,0.00021095,4]